bitfinex-derivatives/quotes_SOLF0:USTF0_20251209
["timestamp","ask_amount","ask_price","bid_price","bid_amount"]
[1765263434928,3.23,132.58,132.52,70.9321]
[1765263435133,3.23,132.56,132.52,74.1721]
[1765263435642,3.23,132.56,132.53,3.24]
[1765263435842,3.28654089,132.56,132.53,3.28970234]
[1765263439643,3.25654089,132.56,132.53,3.28970234]
[1765263440140,3.25654089,132.56,132.54,3.18]
[1765263440932,5.71986675,132.55,132.54,3.18]
[1765263443149,8.91986675,132.55,132.53,0.04970234]
[1765263443445,8.9219537,132.54,132.53,0.04970234]
[1765263445540,5.7219537,132.54,132.53,3.22970234]
[1765263445750,3.25654089,132.56,132.53,3.22970234]
[1765263445940,5.72011402,132.55,132.53,3.22970234]
[1765263446141,3.25654089,132.56,132.53,3.22970234]
[1765263446349,5.72009259,132.55,132.53,3.22970234]
[1765263446545,3.25654089,132.56,132.53,3.22970234]
[1765263446756,5.71977195,132.55,132.53,3.22970234]
[1765263447050,3.25654089,132.56,132.53,3.22970234]
[1765263447249,5.71973626,132.55,132.53,3.22970234]
[1765263447443,3.25654089,132.56,132.53,3.22970234]
[1765263447643,5.71943817,132.55,132.53,3.22970234]
[1765263447843,3.25654089,132.56,132.53,3.22970234]
[1765263448051,5.71943817,132.55,132.53,3.22970234]
[1765263448247,3.25654089,132.56,132.53,3.22970234]
[1765263448446,8.91897829,132.55,132.53,3.22970234]
[1765263448646,3.2,132.55,132.53,3.22970234]
[1765263450652,3.2,132.55,132.53,0.04970234]
[1765263451152,3.2,132.54,132.53,0.04970234]
[1765263451953,8.91773566,132.54,132.53,0.04970234]
[1765263455260,3.2,132.53,132.48,3.18]
[1765263455454,3.2,132.51,132.47,3.18]
[1765263456261,3.25657278,132.5,132.48,3.23434861]
[1765263456653,3.25657278,132.5,132.48,0.05434861]
[1765263457663,8.91122488,132.49,132.48,0.05434861]
[1765263458260,3.25657278,132.5,132.48,0.05434861]
[1765263459470,8.90546812,132.49,132.48,0.05434861]
[1765263460367,3.2,132.49,132.48,0.05434861]
[1765263461067,3.2,132.49,132.44,11.18]
[1765263461263,3.2,132.48,132.44,3.18]
[1765263462166,3.25644152,132.47,132.45,0.05559787]
[1765263465574,3.2,132.46,132.4,67.34]
[1765263466478,0.04933185,132.44,132.42,0.05717027]
[1765263466776,3.2,132.43,132.42,0.05717027]
[1765263469274,3.2,132.43,132.4,3.1]
[1765263470281,3.2,132.43,132.4,3.15674409]
[1765263472481,0.04933185,132.44,132.41,3.1]
[1765263473583,0.04933185,132.44,132.42,3.1]
[1765263475579,0.04933185,132.44,132.43,3.1]
[1765263484091,3.17,132.48,132.45,3.37]
[1765263485095,0.04961531,132.48,132.45,10.223296]
[1765263485297,0.04961531,132.48,132.46,3.37]
[1765263487298,0.04961531,132.48,132.47,3.37]
[1765263502904,0.04961531,132.48,132.45,3.157696]
[1765263502905,9.14982317,132.48,132.45,3.157696]
[1765263503110,3.37,132.47,132.45,3.157696]
[1765263503911,3.41961531,132.48,132.45,3.157696]
[1765263504113,0.04961531,132.48,132.45,3.157696]
[1765263505618,0.04961531,132.48,132.46,3.1]
[1765263506214,0.04961531,132.48,132.47,3.1]
[1765263512419,10.35738238,132.53,132.49,3.1]
[1765263512710,5.72658238,132.52,132.49,3.1]
[1765263512906,5.72658238,132.51,132.49,3.1]
[1765263513106,3.37,132.53,132.5,3.1]
[1765263513306,5.72603519,132.52,132.5,3.1]
[1765263513512,5.72603519,132.51,132.5,3.1544386]
[1765263515009,0.05728594,132.52,132.5,3.1544386]
[1765263515213,0.05728594,132.52,132.51,3.1]
[1765263515610,3.37,132.56,132.51,3.1]
[1765263515822,5.72479735,132.55,132.51,3.1]
[1765263516118,3.37,132.56,132.51,3.1]
[1765263516326,9.07276144,132.55,132.51,3.1]
[1765263516622,0.04833618,132.54,132.52,3.1489163]
[1765263517321,3.41833618,132.54,132.52,3.1489163]
[1765263517621,3.41833618,132.54,132.52,0.0489163]
[1765263518012,11.11522666,132.53,132.52,0.0489163]
[1765263518218,16.40652116,132.53,132.52,0.0489163]
[1765263518712,11.11522666,132.53,132.52,0.0489163]
[1765263519317,9.07339395,132.53,132.52,0.0489163]
[1765263526827,11.11522666,132.53,132.52,0.0489163]
[1765263527830,3.37,132.52,132.48,67.28]
[1765263528033,3.37,132.52,132.48,3.1]
[1765263529036,3.40657652,132.51,132.49,0.0570002]
[1765263529225,3.40657652,132.51,132.49,3.4470002]
[1765263540547,0.05657652,132.51,132.49,3.4470002]
[1765263542149,0.05657652,132.51,132.49,10.2406002]
[1765263542338,0.05657652,132.51,132.5,3.39]
[1765263542537,5.75748226,132.51,132.5,3.39]
[1765263543052,0.05657652,132.51,132.5,3.39]
[1765263543552,5.75473261,132.51,132.5,3.39]
[1765263546051,10.33738238,132.55,132.5,3.39]
[1765263546353,3.35,132.55,132.5,3.39]
[1765263547251,0.05752751,132.54,132.52,3.39]
[1765263550349,3.14752751,132.54,132.52,3.39]
[1765263551143,0.05752751,132.54,132.52,3.39]
[1765263552158,0.05752751,132.54,132.52,10.182]
[1765263552355,0.05752751,132.54,132.53,3.18]
[1765263569176,3.30752751,132.54,132.51,3.33749013]
[1765263573476,0.05752751,132.54,132.51,3.33749013]
[1765263573677,0.05752751,132.54,132.51,10.12999013]
[1765263573879,0.05752751,132.54,132.52,3.28]
[1765263575473,0.05752751,132.54,132.52,10.072]
[1765263576179,0.05752751,132.54,132.53,3.28]
[1765263581975,17.08375332,132.6,132.55,3.28]
[1765263582178,10.93389373,132.59,132.55,3.28]
[1765263582484,5.6750879,132.58,132.55,3.28]
[1765263582685,3.25,132.59,132.55,3.28]
[1765263582883,5.72591051,132.58,132.57,3.28]
[1765263583683,0.05110399,132.58,132.57,3.28]
[1765263584782,5.71695818,132.58,132.57,3.28]
[1765263584977,8.96695818,132.58,132.56,3.33712623]
[1765263585183,3.30110399,132.58,132.56,3.33712623]
[1765263585490,0.05110399,132.58,132.56,3.33712623]
[1765263587885,3.30110399,132.58,132.56,0.05712623]
[1765263588093,5.66939948,132.57,132.56,0.05712623]
[1765263588587,5.66939948,132.57,132.56,3.19712623]
[1765263591895,0.05110399,132.58,132.56,3.19712623]
[1765263592087,0.05110399,132.58,132.56,9.98692623]
[1765263592290,0.05110399,132.58,132.57,3.14]
[1765263600397,10.41535332,132.63,132.59,3.14]
[1765263600598,5.65079083,132.62,132.59,3.14]
[1765263600801,9.32653595,132.65,132.6,3.14]
[1765263600802,10.41535332,132.65,132.6,3.14]
[1765263601102,5.64994382,132.64,132.6,3.14]
[1765263601299,3.37,132.65,132.6,3.14]
[1765263601602,5.69869252,132.64,132.62,3.14]
[1765263601797,0.05326602,132.64,132.62,3.14]
[1765263602703,0.05326602,132.64,132.61,0.05257504]
[1765263602704,3.42326602,132.64,132.61,0.05257504]
[1765263603297,3.37,132.62,132.61,0.05257504]
[1765263604994,8.87720936,132.64,132.61,0.05257504]
[1765263605200,3.37,132.63,132.61,0.05257504]
[1765263605395,10.1568,132.63,132.61,0.05257504]
[1765263605600,5.40764334,132.62,132.61,0.05257504]
[1765263605997,11.04629093,132.62,132.61,0.05257504]
[1765263607599,3.07,132.58,132.49,105.6782]
[1765263607793,5.10764334,132.56,132.5,3.34]
[1765263608401,3.07,132.55,132.51,3.34]
[1765263608603,0.04792389,132.54,132.52,3.39113516]
[1765263608803,3.11792389,132.54,132.52,3.39113516]
[1765263609003,0.04792389,132.54,132.52,3.39113516]
[1765263613113,0.04792389,132.54,132.52,0.05113516]
[1765263613114,5.15556723,132.54,132.52,0.05113516]
[1765263613307,3.07,132.53,132.52,0.05113516]
[1765263614212,0.04792389,132.54,132.52,3.39113516]
[1765263617506,0.04792389,132.54,132.52,10.18313516]
[1765263617703,0.04792389,132.54,132.53,3.34]
[1765263619008,3.07,132.59,132.55,3.31]
[1765263619209,3.38,132.6,132.55,3.31]
[1765263620100,0.05422736,132.59,132.57,3.31]
[1765263621208,3.38,132.58,132.56,0.0526449]
[1765263621413,3.38,132.56,132.51,3.31]
[1765263622315,0.04961595,132.55,132.53,3.31]
[1765263634020,0.04961595,132.55,132.52,6.84938442]
[1765263634021,0.04961595,132.55,132.52,3.36738442]
[1765263634225,0.04961595,132.55,132.53,3.31]
[1765263635023,0.04961595,132.55,132.53,10.1014]
[1765263635229,0.04961595,132.55,132.54,3.31]
[1765263637316,0.04961595,132.55,132.54,5.34764334]
[1765263640133,6.7885,132.6,132.55,3.31]
[1765263640318,5.61190847,132.59,132.55,3.31]
[1765263640619,3.38,132.59,132.55,3.31]
[1765263641122,3.38,132.59,132.56,0.05093614]
[1765263641325,0.05773315,132.58,132.56,3.36093614]
[1765263643221,0.05773315,132.58,132.56,0.05093614]
[1765263643427,3.43773315,132.58,132.56,0.05093614]
[1765263644323,3.38,132.57,132.56,0.05093614]
[1765263644927,10.49369326,132.57,132.56,0.05093614]
[1765263646130,8.99369326,132.57,132.56,0.05093614]
[1765263650431,14.18384342,132.57,132.56,0.05093614]
[1765263654645,5.61369326,132.57,132.56,0.05093614]
[1765263654949,10.80644967,132.57,132.56,3.15093614]
[1765263655845,13.93644967,132.57,132.56,0.05093614]
[1765263656648,8.74369326,132.57,132.56,0.05093614]
[1765263661853,10.7813366,132.57,132.56,0.05093614]
[1765263662054,15.9687435,132.57,132.56,0.05093614]
[1765263663656,3.13,132.53,132.5,3.1]
[1765263663856,2.03764334,132.54,132.48,3.1]
[1765263663857,3.13,132.51,132.48,3.1]
[1765263664553,3.17998947,132.51,132.48,3.15624561]
[1765263667364,3.17998947,132.51,132.48,0.05624561]
[1765263667564,0.04998947,132.51,132.48,3.31624561]
[1765263670362,3.28998947,132.51,132.48,3.31624561]
[1765263671361,0.04998947,132.51,132.49,3.26]
[1765263673958,3.28998947,132.51,132.48,10.11014561]
[1765263674358,0.04998947,132.51,132.49,3.26]
[1765263675155,0.04998947,132.51,132.49,10.0535]
[1765263675360,0.04998947,132.51,132.5,3.26]
[1765263678456,11.96622524,132.57,132.52,3.3]
[1765263678457,15.07622524,132.57,132.52,3.3]
[1765263678664,5.60678865,132.56,132.52,3.3]
[1765263678870,9.8998,132.57,132.52,3.3]
[1765263679070,5.60663575,132.56,132.52,3.3]
[1765263679264,9.8998,132.57,132.52,3.3]
[1765263679465,8.76868589,132.56,132.53,3.35556074]
[1765263679666,3.16195177,132.56,132.53,3.35556074]
[1765263681967,3.16195177,132.56,132.53,0.05556074]
[1765263682467,3.16195177,132.56,132.53,3.35556074]
[1765263683175,0.05195177,132.56,132.53,10.14706074]
[1765263683376,0.05195177,132.56,132.54,3.3]
[1765263684665,0.05195177,132.56,132.55,3.3]
[1765263689073,3.16195177,132.56,132.54,3.3]
[1765263689376,3.16195177,132.56,132.53,3.35556074]
[1765263690370,3.16195177,132.56,132.53,0.05556074]
[1765263690773,3.16195177,132.56,132.53,3.35556074]
[1765263694875,3.16195177,132.56,132.53,0.05556074]
[1765263696180,9.95225177,132.56,132.53,0.05556074]
[1765263696380,3.11,132.55,132.53,0.05556074]
[1765263697084,3.11,132.54,132.53,0.05556074]
[1765263697472,8.7053092,132.54,132.53,0.05556074]
[1765263698581,8.7053092,132.54,132.49,3.3]
[1765263698582,3.11,132.53,132.49,3.3]
[1765263698877,3.11,132.53,132.5,3.3]
[1765263699477,3.16505137,132.53,132.5,3.35778307]
[1765263699985,0.05505137,132.53,132.5,3.35778307]
[1765263701076,0.05505137,132.53,132.52,3.3]
[1765263702487,3.11,132.58,132.54,3.3]
[1765263702682,5.59170412,132.57,132.54,3.3]
[1765263702888,10.14704473,132.6,132.54,3.3]
[1765263703085,13.89253449,132.59,132.54,3.3]
[1765263703384,8.70116414,132.58,132.54,3.3]
[1765263703588,5.59116414,132.57,132.55,3.35774581]
[1765263703885,0.05779378,132.58,132.55,3.35774581]
[1765263704090,5.59109831,132.57,132.55,3.35774581]
[1765263704385,3.16779378,132.58,132.55,3.35774581]
[1765263704580,5.59103318,132.57,132.55,3.35774581]
[1765263704780,3.16779378,132.58,132.55,3.35774581]
[1765263704993,5.59103318,132.57,132.55,3.35774581]
[1765263705280,0.05779378,132.58,132.56,3.3]
[1765263707888,3.16779378,132.58,132.56,3.3]
[1765263708386,0.05779378,132.58,132.56,3.3]
[1765263713083,0.05779378,132.58,132.57,3.35]
[1765263713790,3.23,132.64,132.58,3.35]
[1765263713994,64.14,132.65,132.58,3.35]
[1765263713995,8.81332694,132.63,132.58,3.35]
[1765263714293,3.23,132.63,132.58,3.35]
[1765263714894,0.05678414,132.62,132.6,3.35]
[1765263717197,3.28678414,132.62,132.59,3.39904761]
[1765263717388,3.28678414,132.62,132.59,0.04904761]
[1765263717587,3.28678414,132.62,132.59,3.39904761]
[1765263718695,0.05678414,132.62,132.59,3.39904761]
[1765263718895,3.28678414,132.62,132.59,3.39904761]
[1765263720392,3.28678414,132.62,132.59,0.04904761]
[1765263720792,3.28678414,132.62,132.59,3.39904761]
[1765263721988,0.05678414,132.62,132.59,3.39904761]
[1765263722393,3.21678414,132.62,132.59,3.39904761]
[1765263723891,3.21678414,132.62,132.59,0.04904761]
[1765263725497,3.16,132.61,132.59,0.04904761]
[1765263726501,3.21678414,132.62,132.59,3.12904761]
[1765263727395,3.16,132.67,132.62,3.08]
[1765263727697,3.16,132.66,132.62,3.08]
[1765263728295,3.16,132.66,132.63,0.05275342]
[1765263728502,0.05460773,132.65,132.63,3.13275342]
[1765263729306,0.05460773,132.65,132.64,3.08]
[1765263729505,3.16,132.7,132.64,3.08]
[1765263729804,3.16,132.7,132.66,3.08]
[1765263730508,3.16,132.7,132.67,0.05784528]
[1765263731193,9.9416,132.73,132.67,3.13784528]
[1765263731394,15.45999007,132.73,132.67,3.13784528]
[1765263731795,3.16,132.73,132.69,3.08]
[1765263731996,3.16,132.73,132.7,0.05192614]
[1765263732400,3.16,132.71,132.7,0.05192614]
[1765263734104,3.16,132.7,132.64,3.08]
[1765263734312,3.16,132.66,132.63,67.18]
[1765263734809,3.16,132.66,132.63,3.08]
[1765263735003,3.21264646,132.66,132.63,3.13375735]
[1765263737811,3.21264646,132.66,132.63,0.05375735]
[1765263738320,3.16,132.65,132.63,0.05375735]
[1765263740318,5.33793835,132.64,132.63,0.05375735]
[1765263740725,5.33793835,132.64,132.57,5.21793835]
[1765263740726,3.3,132.63,132.57,3.18]
[1765263740922,3.3,132.61,132.57,9.9694]
[1765263741726,0.05429258,132.6,132.58,0.04763225]
[1765263742525,3.35429258,132.6,132.58,0.04763225]
[1765263744615,3.35429258,132.6,132.58,3.22763225]
[1765263744616,0.05429258,132.6,132.58,3.22763225]
[1765263745229,0.05429258,132.6,132.58,10.01653225]
[1765263745431,0.05429258,132.6,132.59,3.18]
[1765263746724,0.05429258,132.6,132.58,10.01653225]
[1765263747225,0.05429258,132.6,132.59,3.18]
[1765263747820,0.05429258,132.6,132.58,6.83653225]
[1765263747821,3.35429258,132.6,132.58,3.22763225]
[1765263748016,0.05429258,132.6,132.58,3.22763225]
[1765263750227,0.05429258,132.6,132.59,3.18]
[1765263752627,0.05429258,132.6,132.58,10.01663225]
[1765263754931,0.05429258,132.6,132.58,3.22763225]
[1765263755934,3.35429258,132.6,132.58,0.04763225]
[1765263761235,5.33793835,132.59,132.58,0.04763225]
[1765263761428,3.3,132.59,132.58,0.04763225]
[1765263761639,5.33793835,132.59,132.58,0.04763225]
[1765263763824,3.3,132.57,132.53,3.18]
[1765263764030,3.3,132.56,132.53,3.18]
[1765263764238,3.3,132.56,132.52,3.18]
[1765263764932,3.35691395,132.55,132.53,0.05321194]
[1765263765839,3.35691395,132.55,132.53,3.23321194]
[1765263766339,3.35691395,132.55,132.53,0.05321194]
[1765263767441,3.35691395,132.55,132.53,3.23321194]
[1765263768542,3.35691395,132.55,132.53,0.05321194]
[1765263769131,3.35691395,132.55,132.53,3.31321194]
[1765263769330,3.35691395,132.55,132.53,0.05321194]
[1765263769535,3.3,132.52,132.44,3.26]
[1765263769744,3.3,132.5,132.44,3.26]
[1765263769940,3.3,132.48,132.44,3.26]
[1765263770545,0.05563218,132.47,132.45,3.31356121]
[1765263771840,0.05563218,132.47,132.45,5.35149956]
[1765263772039,0.05563218,132.47,132.46,3.26]
[1765263775552,0.05563218,132.47,132.46,5.29793835]
[1765263777950,3.3,132.51,132.47,3.26]
[1765263778251,2.03793835,132.53,132.47,3.26]
[1765263778252,3.3,132.53,132.47,3.26]
[1765263779051,0.05415898,132.51,132.49,3.31107323]
[1765263786149,0.05415898,132.51,132.5,5.29793835]
[1765263786952,0.05415898,132.51,132.5,3.26]
[1765263790059,3.36415898,132.51,132.49,0.05107323]
[1765263791761,3.36415898,132.51,132.46,3.27]
[1765263792153,3.31,132.5,132.46,3.27]
[1765263792753,3.31,132.5,132.47,0.04769787]
[1765263793562,3.31,132.49,132.47,0.04769787]
[1765263794261,3.31,132.49,132.47,3.31769787]
[1765263799069,0.05415898,132.51,132.47,3.31769787]
[1765263800462,0.05415898,132.51,132.48,6.7941]
[1765263800668,0.05415898,132.51,132.49,3.18]
[1765263802457,6.7904,132.56,132.5,3.18]
[1765263802665,3.09,132.57,132.5,3.18]
[1765263802871,3.09,132.57,132.51,3.18]
[1765263803463,3.09,132.57,132.53,0.05334996]
[1765263803765,0.05561113,132.55,132.54,3.18]
[1765263807062,0.05561113,132.55,132.53,0.05334996]
[1765263807063,3.14561113,132.55,132.53,0.05334996]
[1765263807771,3.14561113,132.55,132.53,3.23334996]
[1765263808972,0.05561113,132.55,132.53,3.23334996]
[1765263811078,3.14561113,132.55,132.53,3.23334996]
[1765263812775,0.05561113,132.55,132.53,3.23334996]
[1765263813677,3.14561113,132.55,132.53,3.23334996]
[1765263816676,3.14561113,132.55,132.53,0.05334996]
[1765263817373,3.09,132.53,132.48,9.974]
[1765263817681,3.09,132.53,132.49,3.18]
[1765263818476,3.14251897,132.52,132.5,3.22792295]
[1765263818871,3.14251897,132.52,132.5,0.04792295]
[1765263819780,0.05251897,132.52,132.51,3.18]
[1765263820578,0.05251897,132.52,132.5,3.22792295]
[1765263820778,3.14251897,132.52,132.5,0.04792295]
[1765263825484,3.14251897,132.52,132.5,3.22792295]
[1765263826387,0.05251897,132.52,132.5,3.22792295]
[1765263827583,0.05251897,132.52,132.51,3.18]
[1765263837788,3.16251897,132.52,132.5,0.04792295]
[1765263839502,3.11,132.51,132.5,0.04792295]
[1765263842689,0.05251897,132.52,132.5,3.30792295]
[1765263846798,0.05251897,132.52,132.51,3.26]
[1765263854509,3.32251897,132.52,132.5,0.04792295]
[1765263854716,0.05251897,132.52,132.5,3.28792295]
[1765263856119,3.32251897,132.52,132.5,3.28792295]
[1765263856515,0.05251897,132.52,132.5,3.28792295]
[1765263859627,0.05251897,132.52,132.51,3.25]
[1765263861720,3.29251897,132.52,132.5,0.04792295]
[1765263862715,3.29251897,132.52,132.5,3.29792295]
[1765263863120,10.80605112,132.51,132.5,0.04792295]
[1765263863624,8.76592743,132.51,132.5,0.04792295]
[1765263865929,3.24,132.49,132.46,3.25]
[1765263866628,3.24,132.49,132.44,3.25]
[1765263867030,5.28012369,132.48,132.44,3.25]
[1765263867216,0.0508724,132.47,132.45,3.3073265]
[1765263867721,3.2908724,132.47,132.45,0.0573265]
[1765263867917,5.33099609,132.47,132.45,0.0573265]
[1765263868115,3.24,132.46,132.45,0.0573265]
[1765263870029,10.79883343,132.46,132.45,0.0573265]
[1765263870232,5.28012369,132.46,132.45,0.0573265]
[1765263870828,3.24,132.45,132.42,3.25]
[1765263871437,3.24,132.43,132.4,3.25]
[1765263871725,3.29023211,132.43,132.4,3.304616]
[1765263873224,3.29023211,132.43,132.4,0.054616]
[1765263874624,5.28012369,132.42,132.4,0.054616]
[1765263874822,3.24,132.42,132.4,0.054616]
[1765263875226,3.24,132.42,132.4,3.304616]
[1765263876532,5.28012369,132.41,132.4,0.054616]
[1765263876833,3.24,132.4,132.35,3.25]
[1765263877723,3.29147213,132.39,132.36,3.30803832]
[1765263878036,3.24,132.38,132.36,3.30803832]
[1765263879428,5.33159582,132.39,132.36,3.30803832]
[1765263879729,5.33159582,132.39,132.36,0.05803832]
[1765263879932,3.24,132.38,132.36,0.05803832]
[1765263881333,5.28012369,132.37,132.36,0.05803832]
[1765263884332,5.28012369,132.37,132.32,3.25]
[1765263884333,3.24,132.36,132.32,3.25]
[1765263885221,3.29730784,132.35,132.33,0.05200783]
[1765263885429,3.29730784,132.35,132.33,3.30200783]
[1765263885932,0.05730784,132.35,132.33,3.30200783]
[1765263887635,0.05730784,132.35,132.33,10.10380783]
[1765263888025,0.05730784,132.35,132.34,3.25]
[1765263889322,12.16832369,132.41,132.35,3.38]
[1765263890032,8.83832369,132.41,132.35,3.38]
[1765263890329,3.38686716,132.39,132.37,0.04981233]
[1765263890540,3.38686716,132.39,132.37,3.42981233]
[1765263891131,0.05686716,132.39,132.37,3.42981233]
[1765263891833,3.38686716,132.39,132.37,0.04981233]
[1765263895143,0.05686716,132.39,132.37,3.42981233]
[1765263900442,0.05686716,132.39,132.38,3.38]
[1765263904443,3.38686716,132.39,132.37,0.04981233]
[1765263909551,3.23,132.38,132.37,0.04981233]
[1765263910446,6.85586716,132.39,132.37,0.04981233]
[1765263910447,0.05686716,132.39,132.37,3.27981233]
[1765263910839,0.05686716,132.39,132.38,3.23]
[1765263911040,64.22,132.44,132.38,3.23]
[1765263911041,5.5295725,132.42,132.38,3.23]
[1765263911241,64.22,132.44,132.38,3.23]
[1765263911446,8.7604959,132.43,132.38,3.23]
[1765263911647,3.23,132.43,132.38,3.23]
[1765263912254,5.59108655,132.42,132.4,3.23]
[1765263912448,3.2874352,132.42,132.4,3.23]
[1765263912757,3.2874352,132.42,132.39,0.05566107]
[1765263913450,3.23,132.4,132.39,0.05566107]
[1765263913845,3.23,132.41,132.39,0.05566107]
[1765263914046,3.23,132.41,132.39,3.28566107]
[1765263915047,0.0574352,132.42,132.39,3.28566107]
[1765263916150,3.2874352,132.42,132.39,3.28566107]
[1765263916356,3.2874352,132.42,132.39,0.05566107]
[1765263917249,8.77319452,132.41,132.39,0.05566107]
[1765263917449,3.23,132.41,132.39,0.05566107]
[1765263921062,3.23,132.41,132.35,10.0906]
[1765263921957,0.05488239,132.39,132.37,0.05692729]
[1765263922164,3.09,132.38,132.37,0.05692729]
[1765263923653,3.09,132.38,132.34,3.29]
[1765263924558,3.09,132.38,132.35,0.05165922]
[1765263924755,3.09,132.38,132.35,3.34165922]
[1765263925963,9.8895,132.38,132.35,0.05165922]
[1765263926158,3.09,132.37,132.35,0.05165922]
[1765263927973,3.09,132.37,132.35,3.34165922]
[1765263929176,3.09,132.38,132.35,3.34165922]
[1765263930474,0.05488239,132.39,132.35,3.34165922]
[1765263930873,0.05488239,132.39,132.37,3.29]
[1765263931469,0.05488239,132.39,132.38,3.29]
[1765263932879,3.09,132.45,132.4,3.29]
[1765263933077,8.63655662,132.44,132.4,3.29]
[1765263933277,5.54590214,132.43,132.41,3.29]
[1765263933484,3.09,132.44,132.41,3.29]
[1765263933987,0.05150098,132.44,132.41,3.34114757]
[1765263935189,0.05150098,132.44,132.43,3.29]
[1765263935485,0.00150098,132.44,132.43,3.29]
[1765263935687,5.54082202,132.48,132.44,3.29]
[1765263935881,270.16855016,132.51,132.44,3.29]
[1765263935882,263.20178491,132.51,132.44,3.29]
[1765263936185,5.54031041,132.5,132.44,3.29]
[1765263936386,5.54031041,132.49,132.44,3.29]
[1765263936585,5.54031041,132.49,132.42,108.93009702]
[1765263936586,0.05599304,132.48,132.46,3.29]
[1765263946493,0.05599304,132.48,132.46,10.085]
[1765263946694,3.09,132.53,132.47,3.29]
[1765263947592,3.09,132.53,132.49,3.34310868]
[1765263947794,0.05265364,132.51,132.49,3.34310868]
[1765263948590,0.05265364,132.51,132.49,10.13660868]
[1765263948892,0.05265364,132.51,132.5,3.31]
[1765263951588,5.50592727,132.57,132.52,3.31]
[1765263951790,3.07,132.57,132.52,3.31]
[1765263952699,0.05206364,132.56,132.54,3.31]
[1765263955103,0.05206364,132.56,132.54,10.101]
[1765263955401,0.05206364,132.56,132.55,3.31]
[1765263956699,255.05173668,132.59,132.57,3.31]
[1765263956898,3.07,132.6,132.57,3.31]
[1765263957700,3.1268122,132.6,132.57,3.36445485]
[1765263958906,3.1268122,132.6,132.57,0.05445485]
[1765263960502,3.1268122,132.6,132.57,3.36445485]
[1765263961308,0.0568122,132.6,132.57,3.36445485]
[1765263962104,3.4468122,132.6,132.57,3.36445485]
[1765263967213,3.4468122,132.6,132.57,0.05445485]
[1765263967815,3.4468122,132.6,132.57,3.28445485]
[1765263968506,3.4468122,132.6,132.57,0.05445485]
[1765263968705,3.39,132.58,132.57,0.05445485]
[1765263969814,3.4468122,132.6,132.57,3.28445485]
[1765263970008,3.4468122,132.6,132.57,0.05445485]
[1765263970213,3.39,132.58,132.57,0.05445485]
[1765263970415,3.39,132.58,132.52,64.18]
[1765263970608,3.39,132.55,132.52,67.41]
[1765263971113,3.39,132.53,132.49,3.23]
[1765263971516,0.0513791,132.52,132.5,3.28062427]
[1765263972418,2.09057874,132.52,132.5,3.28062427]
[1765263972619,2.09057874,132.52,132.5,10.07362427]
[1765263972813,2.09057874,132.52,132.51,3.23]
[1765263973812,5.48057874,132.52,132.5,0.05062427]
[1765263974812,3.39,132.51,132.5,0.05062427]
[1765263975417,5.48057874,132.52,132.5,0.05062427]
[1765263975920,2.09057874,132.52,132.5,3.28062427]
[1765263976313,0.0513791,132.52,132.5,3.28062427]
[1765263979218,5.32057874,132.52,132.5,3.28062427]
[1765263982025,5.32057874,132.52,132.51,3.33]
[1765263982026,2.09057874,132.52,132.51,3.33]
[1765263982222,0.0513791,132.52,132.51,3.33]
[1765263982924,0.0513791,132.52,132.5,3.38062427]
[1765263983314,5.32057874,132.52,132.5,0.05062427]
[1765263983622,3.23,132.51,132.5,0.05062427]
[1765263987625,3.23,132.57,132.52,3.33]
[1765263987827,3.23,132.57,132.51,105.661]
[1765263987828,5.26919964,132.6,132.54,3.33]
[1765263988021,5.26919964,132.6,132.55,3.33]
[1765263988329,3.23,132.59,132.55,3.33]
[1765263988526,3.23,132.59,132.56,0.04918628]
[1765263988527,0.05091316,132.58,132.56,0.04918628]
[1765263988728,0.05091316,132.58,132.56,3.37918628]
[1765263992036,0.05091316,132.58,132.56,0.04918628]
[1765263992037,3.28091316,132.58,132.56,0.04918628]
[1765263994026,3.28091316,132.58,132.56,3.37918628]
[1765263994027,0.05091316,132.58,132.56,3.37918628]
[1765263995533,0.05091316,132.58,132.57,3.33]